bitfinex-derivatives/quotes_SOLF0:USTF0_20250706
["timestamp","ask_amount","ask_price","bid_price","bid_amount"]
[1751836012893,9.70755084,151.65,151.62,6.5938]
[1751836013094,12.69023277,151.64,151.62,6.5938]
[1751836013290,4.34877299,151.63,151.62,6.5938]
[1751836022111,4.34877299,151.63,151.62,9.70885084]
[1751836022309,4.34877299,151.63,151.62,9.70887411]
[1751836024204,6.5921,151.66,151.63,6.5929]
[1751836024405,12.55957116,151.65,151.63,9.70797411]
[1751836024600,4.31602776,151.64,151.63,9.70797411]
[1751836024907,4.31602776,151.64,151.63,6.5929]
[1751836027515,9.70772391,151.66,151.63,6.5929]
[1751836027715,16.99630765,151.65,151.63,6.5929]
[1751836027917,4.31630909,151.64,151.63,6.5929]
[1751836043229,9.70772391,151.66,151.63,6.5929]
[1751836043424,17.01267894,151.65,151.63,6.5929]
[1751836043623,4.31851332,151.64,151.63,6.5929]
[1751836044329,8.75702756,151.64,151.63,6.5929]
[1751836051135,17.01269786,151.64,151.63,6.5929]
[1751836055733,12.57418362,151.64,151.63,6.5929]
[1751836055936,16.93527042,151.64,151.63,6.5929]
[1751836056438,16.93551293,151.64,151.63,6.5929]
[1751836062140,16.93544209,151.64,151.63,6.5929]
[1751836065741,4.24290218,151.64,151.63,6.5929]
[1751836066039,4.24290218,151.64,151.63,9.70740269]
[1751836066434,44.54,151.67,151.65,6.5923]
[1751836066634,16.70371478,151.66,151.65,9.70680269]
[1751836068338,8.45622725,151.66,151.65,9.70680269]
[1751836068542,4.03043187,151.66,151.65,9.70680269]
[1751836069141,44.54,151.67,151.65,9.70680269]
[1751836073745,44.54,151.67,151.66,6.5921]
[1751836073944,61.29450412,151.67,151.66,6.5921]
[1751836080645,52.79767329,151.67,151.66,6.5921]
[1751836080846,52.79767329,151.67,151.65,3.11450269]
[1751836080847,65.33958112,151.67,151.65,9.70680269]
[1751836081036,55.17987646,151.67,151.65,9.70680269]
[1751836081441,55.17987646,151.67,151.65,6.5923]
[1751836081939,9.70680269,151.66,151.62,3.11450269]
[1751836082340,9.70680269,151.66,151.63,6.5931]
[1751836082748,9.70680269,151.66,151.63,9.70760269]
[1751836083350,6.5923,151.66,151.63,9.70760269]
[1751836085251,6.5923,151.66,151.64,6.5928]
[1751836092157,48.58807646,151.67,151.64,3.11450269]
[1751836092352,16.77724962,151.66,151.64,3.11450269]
[1751836092553,48.58807646,151.67,151.64,3.11450269]
[1751836093549,48.58807646,151.67,151.65,6.5923]
[1751836093752,48.58807646,151.67,151.65,9.70680269]
[1751836094146,55.17977646,151.67,151.65,9.70680269]
[1751836094349,55.17977646,151.67,151.64,9.70710269]
[1751836094550,16.77728607,151.66,151.64,9.70710269]
[1751836094753,58.29427915,151.67,151.64,9.70710269]
[1751836094952,16.77728607,151.66,151.64,9.70710269]
[1751836095147,58.29427915,151.67,151.64,9.70710269]
[1751836095448,16.77811974,151.66,151.64,9.70710269]
[1751836095642,58.29427915,151.67,151.64,9.70710269]
[1751836095843,16.77829841,151.66,151.64,9.70710269]
[1751836096147,58.29427915,151.67,151.64,9.70710269]
[1751836096347,16.77853823,151.66,151.64,9.70710269]
[1751836096650,55.17977646,151.67,151.64,9.70710269]
[1751836096851,16.77880332,151.66,151.64,9.70710269]
[1751836097052,58.29427915,151.67,151.64,9.70710269]
[1751836097351,16.77901979,151.66,151.64,9.70710269]
[1751836097553,58.29427915,151.67,151.64,9.70710269]
[1751836097754,16.77934416,151.66,151.64,9.70710269]
[1751836097954,58.29427915,151.67,151.64,9.70710269]
[1751836098153,16.77934416,151.66,151.64,9.70710269]
[1751836098356,58.29427915,151.67,151.64,9.70710269]
[1751836098556,16.77992296,151.66,151.64,9.70710269]
[1751836098755,58.29427915,151.67,151.64,9.70710269]
[1751836098952,16.77992296,151.66,151.64,9.70710269]
[1751836099153,58.29427915,151.67,151.64,9.70710269]
[1751836099355,16.78023318,151.66,151.64,9.70710269]
[1751836099656,13.75427915,151.67,151.64,9.70710269]
[1751836099852,16.78052365,151.66,151.64,9.70710269]
[1751836100153,13.75427915,151.67,151.64,9.70710269]
[1751836100452,16.78100211,151.66,151.64,9.70710269]
[1751836100749,13.75427915,151.67,151.64,9.70710269]
[1751836100952,16.77571137,151.66,151.64,9.70710269]
[1751836101151,13.75427915,151.67,151.64,9.70710269]
[1751836101352,16.77492484,151.66,151.64,9.70710269]
[1751836101553,13.75427915,151.67,151.64,9.70710269]
[1751836101753,16.77577632,151.66,151.64,9.70710269]
[1751836101954,13.75427915,151.67,151.64,9.70710269]
[1751836102155,16.77645962,151.66,151.64,9.70710269]
[1751836102356,13.75427915,151.67,151.64,9.70710269]
[1751836102556,16.77719841,151.66,151.64,9.70710269]
[1751836102756,13.75427915,151.67,151.64,9.70710269]
[1751836102958,16.77719841,151.66,151.64,9.70710269]
[1751836103159,3.11450269,151.65,151.61,3.11450269]
[1751836103359,3.11450269,151.64,151.58,51.4865]
[1751836103659,4.04807646,151.67,151.6,3.11450269]
[1751836103660,3.11450269,151.63,151.6,3.11450269]
[1751836104257,3.11450269,151.63,151.61,6.5942]
[1751836104559,9.70770269,151.64,151.61,6.5942]
[1751836104756,15.11129884,151.63,151.6,9.70900269]
[1751836104956,6.5934,151.63,151.6,9.70900269]
[1751836105156,9.70790269,151.63,151.6,9.70900269]
[1751836107257,9.70790269,151.63,151.6,6.5945]
[1751836107466,9.70790269,151.63,151.6,9.70900269]
[1751836109262,6.5934,151.63,151.6,9.70900269]
[1751836109561,3.11450269,151.62,151.58,3.11450269]
[1751836109764,3.11450269,151.61,151.57,3.11450269]
[1751836110167,9.70830269,151.62,151.59,6.5951]
[1751836110561,3.11450269,151.62,151.59,6.5951]
[1751836111565,6.5942,151.61,151.59,6.5951]
[1751836111965,3.11450269,151.62,151.59,6.5951]
[1751836112160,9.70850269,151.62,151.59,6.5951]
[1751836114173,6.594,151.62,151.59,6.5951]
[1751836114370,9.70850269,151.62,151.59,6.5951]
[1751836123584,9.70850269,151.62,151.59,9.70960269]
[1751836124782,9.70850269,151.62,151.59,6.5951]
[1751836126480,9.70850269,151.62,151.54,51.2447]
[1751836126481,6.5932,151.64,151.61,3.11450269]
[1751836126687,6.5932,151.64,151.62,3.11450269]
[1751836127085,6.5932,151.64,151.61,3.11450269]
[1751836127284,6.5932,151.64,151.61,9.70860269]
[1751836127485,6.5934,151.63,151.61,9.70860269]
[1751836132294,9.70760269,151.64,151.61,9.70860269]
[1751836140404,6.5926,151.65,151.62,9.70810269]
[1751836150107,6.5926,151.65,151.57,44.54]
[1751836150108,9.70750269,151.64,151.6,3.11450269]
[1751836151011,9.70750269,151.64,151.61,6.594]
[1751836153012,6.5934,151.63,151.61,6.594]
[1751836153920,6.5934,151.63,151.6,9.70890269]
[1751836154215,9.70750269,151.64,151.61,3.11450269]
[1751836154407,6.593,151.64,151.61,3.11450269]
[1751836154609,6.593,151.64,151.61,9.70830269]
[1751836158520,6.593,151.64,151.62,6.5938]
[1751836160220,6.593,151.64,151.61,3.11450269]
[1751836160221,6.593,151.64,151.61,9.70850269]
[1751836161625,6.593,151.64,151.62,6.5938]
[1751836164229,9.70720269,151.65,151.62,6.5938]
[1751836164430,16.65880341,151.64,151.62,6.5938]
[1751836164724,9.70720269,151.65,151.62,6.5938]
[1751836164923,16.65880341,151.64,151.62,6.5938]
[1751836165125,9.70720269,151.65,151.62,6.5938]
[1751836165325,16.67223424,151.64,151.62,6.5938]
[1751836165517,9.70720269,151.65,151.62,6.5938]
[1751836165723,16.67296129,151.64,151.62,6.5938]
[1751836165924,9.70720269,151.65,151.62,6.5938]
[1751836166122,16.67296129,151.64,151.62,6.5938]
[1751836166323,9.70720269,151.65,151.62,6.5938]
[1751836166524,16.67457483,151.64,151.62,6.5938]
[1751836166722,9.70720269,151.65,151.62,6.5938]
[1751836166924,16.67457483,151.64,151.62,6.5938]
[1751836167226,9.70720269,151.65,151.62,6.5938]
[1751836167427,16.67638564,151.64,151.62,6.5938]
[1751836167625,9.70720269,151.65,151.62,6.5938]
[1751836167825,16.67638564,151.64,151.62,6.5938]
[1751836168025,9.70720269,151.65,151.62,6.5938]
[1751836168227,16.6772604,151.64,151.62,6.5938]
[1751836168424,9.70720269,151.65,151.62,6.5938]
[1751836168626,16.67843739,151.64,151.62,6.5938]
[1751836168824,9.70720269,151.65,151.62,6.5938]
[1751836169028,16.67843739,151.64,151.62,6.5938]
[1751836169324,9.70720269,151.65,151.62,6.5938]
[1751836169529,16.68079734,151.64,151.62,6.5938]
[1751836169737,9.70720269,151.65,151.62,6.5938]
[1751836170027,16.68080073,151.64,151.62,6.5938]
[1751836170217,9.70883867,151.65,151.62,6.5938]
[1751836170419,16.68358208,151.64,151.62,6.5938]
[1751836170617,9.70883867,151.65,151.62,6.5938]
[1751836170830,16.68358208,151.64,151.62,6.5938]
[1751836171029,9.70883867,151.65,151.62,6.5938]
[1751836171229,16.68519676,151.64,151.62,6.5938]
[1751836171528,9.70883867,151.65,151.62,6.5938]
[1751836171732,16.6870065,151.64,151.62,6.5938]
[1751836171928,9.70883867,151.65,151.62,6.5938]
[1751836172129,16.68710557,151.64,151.62,6.5938]
[1751836172427,9.70883867,151.65,151.62,6.5938]
[1751836172627,16.68738246,151.64,151.62,6.5938]
[1751836172927,9.70883867,151.65,151.62,6.5938]
[1751836173127,16.68738246,151.64,151.62,6.5938]
[1751836173327,9.70883867,151.65,151.62,6.5938]
[1751836173528,16.68778214,151.64,151.62,6.5938]
[1751836173727,9.70883867,151.65,151.62,6.5938]
[1751836173929,16.68778233,151.64,151.62,6.5938]
[1751836174129,6.5931,151.64,151.56,44.52]
[1751836174328,6.5931,151.64,151.61,3.11613867]
[1751836174732,6.5931,151.64,151.61,9.71003867]
[1751836174932,6.5931,151.64,151.61,3.11613867]
[1751836176532,6.5931,151.64,151.62,6.5938]
[1751836181639,9.70873867,151.65,151.62,6.5938]
[1751836181933,16.67149724,151.64,151.62,6.5938]
[1751836182126,9.70873867,151.65,151.62,6.5938]
[1751836182323,16.67160022,151.64,151.62,6.5938]
[1751836182530,9.70873867,151.65,151.62,6.5938]
[1751836182731,16.67170524,151.64,151.62,6.5938]
[1751836182931,9.70873867,151.65,151.62,6.5938]
[1751836183131,16.67170524,151.64,151.62,6.5938]
[1751836183330,9.70873867,151.65,151.62,6.5938]
[1751836183530,16.67192128,151.64,151.62,6.5938]
[1751836183731,9.70873867,151.65,151.62,6.5938]
[1751836183932,16.67192128,151.64,151.62,6.5938]
[1751836184129,9.70873867,151.65,151.62,6.5938]
[1751836184333,23.26519379,151.64,151.62,6.5938]
[1751836184529,6.5929,151.64,151.62,6.5938]
[1751836184837,6.5929,151.64,151.61,6.5941]
[1751836187540,4.02161354,151.63,151.61,6.5941]
[1751836187736,6.5929,151.64,151.61,6.5941]
[1751836187936,4.02161354,151.63,151.61,6.5941]
[1751836188139,6.5929,151.64,151.61,6.5941]
[1751836188438,4.02160786,151.63,151.61,6.5941]
[1751836188638,6.5929,151.64,151.61,6.5941]
[1751836188840,4.02160786,151.63,151.61,6.5941]
[1751836189139,6.5929,151.64,151.61,6.5941]
[1751836189436,4.02160786,151.63,151.61,6.5941]
[1751836189636,6.5929,151.64,151.61,6.5941]
[1751836189838,4.02160319,151.63,151.61,6.5941]
[1751836190040,6.5929,151.64,151.61,6.5941]
[1751836190237,4.02160319,151.63,151.61,6.5941]
[1751836190434,6.5929,151.64,151.61,6.5941]
[1751836190631,8.44485676,151.63,151.61,6.5941]
[1751836190833,6.5929,151.64,151.61,6.5941]
[1751836191036,8.44485676,151.63,151.61,6.5941]
[1751836191238,6.5929,151.64,151.61,9.71056615]
[1751836191439,8.44518225,151.63,151.61,9.71056615]
[1751836191644,6.5929,151.64,151.61,9.71056615]
[1751836191842,8.44518225,151.63,151.61,9.71056615]
[1751836192041,6.5929,151.64,151.61,9.71056615]
[1751836192242,8.44518225,151.63,151.61,9.71056615]
[1751836192446,6.5929,151.64,151.61,9.71056615]
[1751836192642,8.43462096,151.63,151.61,9.71056615]
[1751836192842,6.5929,151.64,151.61,9.71056615]
[1751836193038,8.43462096,151.63,151.61,9.71056615]
[1751836193345,6.5929,151.64,151.61,9.71056615]
[1751836193543,8.43504625,151.63,151.61,9.71056615]
[1751836193738,6.5929,151.64,151.61,9.71056615]
[1751836193934,8.43504625,151.63,151.61,9.71056615]
[1751836194140,6.5929,151.64,151.61,9.71056615]
[1751836194440,16.67532576,151.63,151.61,9.71056615]
[1751836194641,6.5929,151.64,151.61,9.71056615]
[1751836194943,16.67582372,151.63,151.61,9.71056615]
[1751836195133,6.5929,151.64,151.61,9.71056615]
[1751836195331,16.66312173,151.63,151.62,6.5938]
[1751836195531,16.66312173,151.63,151.61,3.11646615]
[1751836195731,6.5929,151.64,151.61,3.11646615]
[1751836195937,16.66426927,151.63,151.61,3.11646615]
[1751836196239,6.5929,151.64,151.61,9.71056615]
[1751836196439,16.6663174,151.63,151.61,9.71056615]
[1751836196636,44.54,151.66,151.61,3.11646615]
[1751836196848,15.3706943,151.65,151.61,3.11646615]
[1751836197143,16.66631732,151.64,151.61,3.11646615]
[1751836197341,16.66631732,151.63,151.61,3.11646615]
[1751836197651,6.593,151.64,151.61,9.71046615]
[1751836197945,16.66819206,151.63,151.61,9.71046615]
[1751836198148,6.593,151.64,151.61,9.71046615]
[1751836198348,16.66875581,151.63,151.61,9.71046615]
[1751836198645,6.593,151.64,151.61,9.71046615]
[1751836198848,16.66933291,151.63,151.61,9.71046615]
[1751836199043,6.593,151.64,151.61,9.71046615]
[1751836199247,16.66933291,151.63,151.61,9.71046615]
[1751836199450,6.593,151.64,151.61,9.71046615]
[1751836199748,16.6689719,151.63,151.61,9.71046615]
[1751836199943,6.593,151.64,151.61,9.71046615]
[1751836200149,16.6689719,151.63,151.61,9.71046615]
[1751836200351,6.593,151.64,151.61,9.71046615]
[1751836200553,16.68168823,151.63,151.61,9.71046615]
[1751836200753,6.593,151.64,151.61,9.71046615]
[1751836200950,16.68168823,151.63,151.61,9.71046615]
[1751836201149,6.593,151.64,151.61,9.71046615]
[1751836201352,16.68167263,151.63,151.61,9.71046615]
[1751836201552,6.593,151.64,151.61,9.71046615]
[1751836201751,16.68137979,151.63,151.61,9.71046615]
[1751836202049,6.593,151.64,151.61,9.71046615]
[1751836202252,16.68137981,151.63,151.61,9.71046615]
[1751836202453,6.593,151.64,151.61,9.71046615]
[1751836202655,16.68111425,151.63,151.61,9.71046615]
[1751836202853,6.593,151.64,151.61,9.71046615]
[1751836203053,16.68111425,151.63,151.61,9.71046615]
[1751836203251,6.593,151.64,151.61,9.71046615]
[1751836203454,16.68088218,151.63,151.61,9.71046615]
[1751836203643,6.593,151.64,151.61,9.71046615]
[1751836203847,16.68088227,151.63,151.61,9.71046615]
[1751836204044,6.593,151.64,151.61,9.71046615]
[1751836204349,16.68088227,151.63,151.61,9.71046615]
[1751836204543,6.593,151.64,151.61,9.71046615]
[1751836204754,16.68067782,151.63,151.61,9.71046615]
[1751836204947,6.593,151.64,151.61,9.71046615]
[1751836205149,16.68067782,151.63,151.61,9.71046615]
[1751836205347,6.593,151.64,151.61,9.71046615]
[1751836205549,16.68049688,151.63,151.61,9.71046615]
[1751836205750,6.593,151.64,151.61,9.71046615]
[1751836205945,16.69271108,151.63,151.61,9.71046615]
[1751836206149,6.593,151.64,151.61,9.71046615]
[1751836206348,16.69269374,151.63,151.61,9.71046615]
[1751836206650,6.593,151.64,151.61,9.71046615]
[1751836206849,16.69255059,151.63,151.61,9.71046615]
[1751836207050,6.593,151.64,151.61,9.71046615]
[1751836207252,8.45011683,151.63,151.61,9.71046615]
[1751836207453,6.593,151.64,151.61,9.71046615]
[1751836207656,16.69240846,151.63,151.61,9.71046615]
[1751836207956,6.593,151.64,151.61,9.71046615]
[1751836208156,16.69660976,151.63,151.61,9.71046615]
[1751836208359,6.593,151.64,151.61,6.594]
[1751836208657,16.69648193,151.63,151.61,6.594]
[1751836208857,6.593,151.64,151.61,6.594]
[1751836209059,16.69648193,151.63,151.61,6.594]
[1751836209258,6.593,151.64,151.61,6.594]
[1751836209455,16.69641117,151.63,151.61,6.594]
[1751836209657,6.593,151.64,151.61,6.594]
[1751836209853,6.593,151.64,151.62,6.5937]
[1751836211159,8.2453819,151.63,151.62,6.5937]
[1751836211362,16.7032188,151.63,151.62,6.5937]
[1751836212462,16.7032188,151.63,151.61,6.594]
[1751836212762,6.593,151.64,151.61,6.594]
[1751836212957,8.45786997,151.63,151.61,6.594]
[1751836213153,6.593,151.64,151.61,6.594]
[1751836213359,16.70316385,151.63,151.61,6.594]
[1751836213656,6.593,151.64,151.61,6.594]
[1751836213861,16.7031259,151.63,151.61,6.594]
[1751836214063,9.709469,151.64,151.61,6.594]
[1751836214262,16.7030925,151.63,151.61,6.594]
[1751836214463,9.709469,151.64,151.61,6.594]
[1751836214663,16.70305986,151.63,151.61,6.594]
[1751836214863,9.709469,151.64,151.61,6.594]
[1751836215064,16.70305986,151.63,151.61,6.594]
[1751836215261,9.709469,151.64,151.61,6.594]
[1751836215556,12.67874511,151.63,151.61,9.710469]
[1751836215763,9.709469,151.64,151.61,9.710469]
[1751836215965,16.70300213,151.63,151.61,9.710469]
[1751836216163,9.709469,151.64,151.61,9.710469]
[1751836216361,16.70297048,151.63,151.61,9.710469]
[1751836216564,9.709469,151.64,151.61,9.710469]
[1751836216766,16.70295259,151.63,151.61,9.710469]
[1751836216965,9.709469,151.64,151.61,9.710469]
[1751836217165,16.70295259,151.63,151.61,9.710469]
[1751836217366,9.709469,151.64,151.61,9.710469]
[1751836217566,16.70291101,151.63,151.61,9.710469]
[1751836217760,9.709469,151.64,151.61,9.710469]
[1751836217957,16.70291101,151.63,151.61,9.710469]
[1751836218161,9.709469,151.64,151.61,9.710469]
[1751836218361,16.70288155,151.63,151.61,9.710469]
[1751836218663,9.709469,151.64,151.61,9.710469]
[1751836218965,16.70287724,151.63,151.61,9.710469]
[1751836219265,9.709469,151.64,151.61,9.710469]
[1751836219464,16.70284302,151.63,151.61,9.710469]
[1751836219664,9.709469,151.64,151.61,9.710469]
[1751836219864,16.70285119,151.63,151.61,9.710469]
[1751836220063,9.709469,151.64,151.61,9.710469]
[1751836220263,16.70285119,151.63,151.61,9.710469]
[1751836220469,9.709469,151.64,151.61,9.710469]
[1751836220667,16.70283276,151.63,151.61,9.710469]
[1751836220867,9.709469,151.64,151.61,9.710469]
[1751836221168,16.70283266,151.63,151.61,9.710469]
[1751836221362,9.709469,151.64,151.61,9.710469]
[1751836221564,16.70282183,151.63,151.61,9.710469]
[1751836221764,9.709469,151.64,151.61,9.710469]
[1751836222066,16.70282183,151.63,151.61,9.710469]
[1751836222264,9.709469,151.64,151.61,9.710469]
[1751836222464,16.70281853,151.63,151.61,9.710469]
[1751836222665,9.709469,151.64,151.61,9.710469]
[1751836222875,16.70281853,151.63,151.61,9.710469]
[1751836223067,9.709469,151.64,151.61,9.710469]
[1751836223370,16.70279698,151.63,151.61,9.710469]
[1751836223568,9.709469,151.64,151.61,9.710469]
[1751836223768,16.70282294,151.63,151.61,9.710469]
[1751836223966,9.709469,151.64,151.61,9.710469]
[1751836224164,16.70282294,151.63,151.61,9.710469]
[1751836224365,9.709469,151.64,151.61,9.710469]
[1751836224664,16.70280894,151.63,151.61,9.710469]
[1751836224865,9.709469,151.64,151.61,9.710469]
[1751836225159,16.7028349,151.63,151.61,9.710469]
[1751836225358,9.709469,151.64,151.61,9.710469]
[1751836225560,16.7028543,151.63,151.61,9.710469]
[1751836225760,9.709469,151.64,151.61,9.710469]
[1751836225970,16.7028543,151.63,151.61,9.710469]
[1751836226270,9.709469,151.64,151.61,9.710469]
[1751836226471,16.70288201,151.63,151.61,9.710469]
[1751836226666,9.709469,151.64,151.61,9.710469]
[1751836226867,16.70288134,151.63,151.61,9.710469]
[1751836227167,9.709469,151.64,151.61,9.710469]
[1751836227366,16.70250864,151.63,151.61,9.710469]
[1751836227570,9.709469,151.64,151.61,9.710469]
[1751836227770,16.70255584,151.63,151.61,9.710469]
[1751836227976,9.709469,151.64,151.61,9.710469]
[1751836228270,16.70255584,151.63,151.61,9.710469]
[1751836228470,9.709469,151.64,151.61,9.710469]
[1751836228668,16.70259822,151.63,151.61,9.710469]
[1751836228966,9.709469,151.64,151.61,9.710469]
[1751836229163,16.70259822,151.63,151.61,9.710469]
[1751836229361,9.709469,151.64,151.61,9.710469]
[1751836229566,16.70265394,151.63,151.61,9.710469]
[1751836229773,9.709469,151.64,151.61,9.710469]
[1751836229970,16.70264796,151.63,151.61,9.710469]
[1751836230173,9.709469,151.64,151.61,9.710469]
[1751836230371,16.70264426,151.63,151.61,9.710469]
[1751836230570,9.709469,151.64,151.61,9.710469]
[1751836230773,16.70306723,151.63,151.61,9.710469]
[1751836231069,9.709469,151.64,151.61,9.710469]
[1751836231269,16.70306551,151.63,151.61,9.710469]
[1751836231466,9.709469,151.64,151.61,9.710469]
[1751836231666,16.71587369,151.63,151.61,9.710469]
[1751836231868,9.709469,151.64,151.61,9.710469]
[1751836232068,16.71587369,151.63,151.61,9.710469]
[1751836232264,9.709469,151.64,151.61,9.710469]
[1751836232469,16.71594878,151.63,151.61,9.710469]
[1751836232671,9.709469,151.64,151.61,9.710469]
[1751836232970,16.71594878,151.63,151.61,9.710469]
[1751836233170,9.709469,151.64,151.61,9.710469]
[1751836233369,16.71599,151.63,151.61,9.710469]
[1751836233573,9.709469,151.64,151.61,9.710469]
[1751836233766,16.71603286,151.63,151.61,9.710469]
[1751836233967,9.709469,151.64,151.61,9.710469]
[1751836234165,16.71603286,151.63,151.61,6.594]
[1751836234374,9.709469,151.64,151.61,6.594]
[1751836234674,16.71612615,151.63,151.61,6.594]
[1751836234876,6.593,151.64,151.61,6.594]
[1751836235066,16.71612615,151.63,151.61,6.594]
[1751836235271,6.593,151.64,151.61,6.594]
[1751836235474,16.71622907,151.63,151.61,6.594]
[1751836235674,6.593,151.64,151.61,6.594]
[1751836235977,16.70348748,151.63,151.61,6.594]
[1751836236274,6.593,151.64,151.61,6.594]
[1751836236472,16.69753813,151.63,151.61,6.594]
[1751836236673,6.593,151.64,151.61,6.594]
[1751836236873,16.69753814,151.63,151.61,6.594]
[1751836237074,6.593,151.64,151.61,6.594]
[1751836237274,16.697564,151.63,151.61,6.594]
[1751836237573,6.593,151.64,151.61,6.594]
[1751836237773,16.69766166,151.63,151.61,6.594]
[1751836238074,6.593,151.64,151.61,6.594]
[1751836238376,16.69207503,151.63,151.61,6.594]
[1751836238577,6.593,151.64,151.61,6.594]
[1751836238780,16.69220945,151.63,151.61,6.594]
[1751836238976,6.593,151.64,151.61,6.594]
[1751836239177,16.69220945,151.63,151.61,6.594]
[1751836239378,6.593,151.64,151.61,6.594]
[1751836239578,16.69235593,151.63,151.61,6.594]
[1751836239782,6.593,151.64,151.61,6.594]
[1751836240084,16.692356,151.63,151.61,6.594]
[1751836240279,6.593,151.64,151.61,6.594]
[1751836240478,16.69251546,151.63,151.61,6.594]
[1751836240680,6.593,151.64,151.61,6.594]
[1751836240879,16.67977167,151.63,151.61,6.594]
[1751836241081,6.593,151.64,151.61,6.594]
[1751836241279,16.69146695,151.63,151.61,6.594]
[1751836241476,6.593,151.64,151.61,6.594]
[1751836241676,16.6915007,151.63,151.61,6.594]
[1751836241975,6.593,151.64,151.61,6.594]
[1751836242172,9.26618034,151.68,151.63,3.11638481]
[1751836242377,16.68833939,151.67,151.66,3.11435876]
[1751836242679,6.592,151.66,151.64,3.11435876]
[1751836242882,3.11435876,151.68,151.64,3.11435876]
[1751836243076,16.67894462,151.67,151.65,3.11435876]
[1751836243280,16.67894462,151.66,151.65,3.11435876]
[1751836243681,8.44456315,151.66,151.65,3.11435876]
[1751836244283,6.5917,151.67,151.65,3.11435876]
[1751836245085,16.66976783,151.66,151.64,3.11435876]
[1751836245283,3.11435876,151.67,151.64,3.11435876]
[1751836245478,16.66728697,151.66,151.64,3.11435876]
[1751836245678,3.11435876,151.67,151.64,3.11435876]
[1751836245878,12.65490306,151.66,151.64,3.11435876]
[1751836246081,3.11435876,151.67,151.64,3.11435876]
[1751836246279,16.66728697,151.66,151.64,3.11435876]
[1751836246481,9.70605876,151.67,151.64,9.70705876]
[1751836246683,4.42570906,151.66,151.64,9.70705876]
[1751836246882,9.70605876,151.67,151.64,9.70705876]
[1751836247082,12.68917584,151.66,151.64,9.70705876]
[1751836247286,9.70605876,151.67,151.64,9.70705876]
[1751836248488,4.47556329,151.66,151.64,9.70705876]
[1751836248690,9.70605876,151.67,151.64,9.70705876]
[1751836248989,4.47556329,151.66,151.64,9.70705876]
[1751836249187,9.70605876,151.67,151.64,9.70705876]
[1751836249389,4.47556329,151.66,151.64,9.70705876]
[1751836249588,9.70605876,151.67,151.64,9.70705876]
[1751836249789,4.48784577,151.66,151.64,9.70705876]
[1751836250088,9.70605876,151.67,151.64,9.70705876]
[1751836250289,4.48784577,151.66,151.64,9.70705876]
[1751836250590,9.70605876,151.67,151.64,9.70705876]
[1751836250888,8.54126022,151.66,151.64,9.70705876]
[1751836251087,9.70605876,151.67,151.64,9.70705876]
[1751836251285,4.48745951,151.66,151.64,9.70705876]
[1751836251492,9.70605876,151.67,151.64,9.70705876]
[1751836255692,3.11435876,151.67,151.64,9.70705876]
[1751836257095,9.70575876,151.68,151.64,9.70705876]
[1751836257286,16.79527362,151.67,151.64,9.70705876]
[1751836257490,9.70575876,151.68,151.64,9.70705876]
[1751836257696,16.79465956,151.67,151.64,9.70705876]
[1751836257995,9.70575876,151.68,151.64,9.70705876]
[1751836258200,16.79465954,151.67,151.64,9.70705876]
[1751836258396,6.5914,151.68,151.65,9.70655876]
[1751836258695,16.79414312,151.67,151.65,9.70655876]
[1751836258995,9.70575876,151.68,151.65,9.70655876]
[1751836259195,16.79336605,151.67,151.65,9.70655876]
[1751836259395,9.70575876,151.68,151.65,9.70655876]
[1751836259597,16.79264304,151.67,151.65,9.70655876]
[1751836259900,9.70575876,151.68,151.65,9.70655876]
[1751836260195,16.79264304,151.67,151.65,9.70655876]
[1751836260489,9.70575876,151.68,151.65,9.70655876]
[1751836260690,16.79246989,151.67,151.65,9.70655876]
[1751836260895,4.05160917,151.67,151.65,9.70655876]
[1751836261094,9.70575876,151.68,151.65,9.70655876]
[1751836261296,16.79246892,151.67,151.65,9.70655876]
[1751836261488,9.70575876,151.68,151.65,9.70655876]
[1751836261699,16.79210473,151.67,151.65,9.70655876]
[1751836261892,6.5914,151.68,151.65,9.70655876]
[1751836262098,16.79189696,151.67,151.65,9.70655876]
[1751836262298,6.5914,151.68,151.65,9.70655876]
[1751836262493,16.79144326,151.67,151.65,9.70655876]
[1751836262699,6.5914,151.68,151.65,9.70655876]
[1751836262891,16.79144329,151.67,151.65,9.70655876]